bitfinex/quotes_ETHUSD_20260304
["timestamp","ask_amount","ask_price","bid_price","bid_amount"]
[1772638255976,2.5034069,2131.1,2128.0,0.14948499]
[1772638255977,4.14662315,2130.4,2128.0,0.14948499]
[1772638256175,1.17354363,2130.3,2128.2,0.14948499]
[1772638256394,7.04405964,2130.3,2128.2,0.14948499]
[1772638256598,5.87051601,2130.2,2128.2,0.21502099]
[1772638256775,1.17316644,2131.0,2128.4,4.46177229]
[1772638257087,2.28297122,2131.4,2128.6,4.46177229]
[1772638257284,2.28297122,2131.4,2129.5,0.14948499]
[1772638257483,8.83775613,2131.7,2129.2,0.14948499]
[1772638257484,1.1724429,2132.3,2129.8,4.4041806]
[1772638257673,1.1724429,2132.3,2130.1,0.21502099]
[1772638257674,5.31906605,2132.3,2130.1,0.21502099]
[1772638258006,4.14662315,2132.2,2130.1,0.14948499]
[1772638258195,4.14662315,2132.0,2130.0,0.065536]
[1772638258372,4.14662315,2132.0,2129.7,1.31348499]
[1772638258577,4.14662315,2132.0,2129.8,0.065536]
[1772638259287,4.68918694,2132.6,2130.2,4.41857839]
[1772638259600,4.68918694,2132.6,2130.7,0.14948499]
[1772638259902,0.002,2131.2,2130.8,1.163]
[1772638260115,4.68918694,2132.6,2130.9,0.21502099]
[1772638260330,4.68918694,2132.6,2131.0,1.17315814]
[1772638260476,5.79811188,2132.8,2131.1,0.21502099]
[1772638260477,1.109,2132.8,2131.1,0.21502099]
[1772638260678,4.68753804,2133.4,2131.3,0.21502099]
[1772638260872,1.17401399,2133.1,2131.5,0.21502099]
[1772638261072,1.17401399,2133.1,2131.2,1.37702099]
[1772638261272,1.17401399,2133.1,2131.4,0.14948499]
[1772638261595,0.003,2133.8,2131.4,4.63359938]
[1772638261909,1.17464411,2133.8,2131.6,4.63359938]
[1772638262113,1.17464411,2133.8,2131.7,2.9810048]
[1772638262308,0.003,2133.8,2132.0,0.14948499]
[1772638262702,1.40504999,2135.2,2132.0,0.14948499]
[1772638262703,1.17117961,2134.6,2132.4,0.065536]
[1772638262891,1.17117961,2134.6,2132.7,0.14948499]
[1772638263095,4.68471844,2134.7,2132.7,4.56806338]
[1772638263390,8.83026739,2135.1,2132.8,2.57039347]
[1772638263583,4.14662315,2134.9,2132.4,4.41857839]
[1772638263929,4.14662315,2134.9,2132.6,0.14948499]
[1772638264142,4.14662315,2134.9,2132.8,0.14948499]
[1772638264277,1.17106988,2134.8,2133.0,0.21502099]
[1772638264810,5.31670645,2136.7,2134.8,0.210509]
[1772638265126,4.14662315,2135.7,2133.3,1.159]
[1772638265278,4.14662315,2135.5,2133.3,1.30748499]
[1772638265478,2.5034069,2135.8,2133.5,0.14948499]
[1772638265678,4.14662315,2135.8,2133.6,0.14948499]
[1772638265901,4.14662315,2135.7,2133.2,1.158]
[1772638266105,4.14662315,2135.7,2133.3,0.14948499]
[1772638266290,4.14662315,2135.5,2133.2,0.14948499]
[1772638266501,4.14662315,2136.6,2133.4,4.56806338]
[1772638266678,4.14662315,2136.6,2133.9,4.41857839]
[1772638266885,4.14662315,2136.4,2133.4,4.41857839]
[1772638267082,4.14662315,2136.3,2133.4,4.41857839]
[1772638267298,4.14662315,2135.9,2133.5,1.157]
[1772638267503,4.14662315,2135.9,2133.6,0.065536]
[1772638267715,4.14662315,2135.9,2133.7,0.14948499]
[1772638267910,4.14662315,2135.9,2133.6,5.57457839]
[1772638268112,4.14662315,2135.9,2133.7,0.065536]
[1772638268317,4.14662315,2135.9,2133.6,5.57457839]
[1772638268318,1.16997379,2136.8,2134.7,1.17112474]
[1772638268523,1.16997379,2136.8,2134.9,0.14948499]
[1772638268800,1.40363648,2137.4,2134.9,0.14948499]
[1772638268801,4.67851315,2137.5,2134.9,4.63359938]
[1772638269016,8.8251363,2137.5,2134.9,4.63359938]
[1772638269328,4.14662315,2137.4,2135.1,0.21502099]
[1772638269495,4.14662315,2137.3,2135.1,0.065536]
[1772638269702,4.14662315,2137.0,2134.8,0.21502099]
[1772638270132,4.14662315,2137.0,2135.0,0.14948499]
[1772638270312,1.16991904,2136.9,2135.3,1.17079567]
[1772638270507,8.82629931,2137.0,2135.3,1.17079567]
[1772638270508,5.3165069,2137.0,2135.4,0.14948499]
[1772638270721,4.14662315,2136.9,2134.6,1.17117961]
[1772638270925,2.17351,2136.5,2134.2,0.45653418]
[1772638271142,1.16988375,2137.0,2134.2,7.22533493]
[1772638271143,4.14662315,2135.7,2134.2,7.22533493]
[1772638271457,1.1,2136.4,2134.3,8.0]
[1772638271742,4.14662315,2136.3,2134.3,8.0]
[1772638271946,4.14662315,2136.3,2134.4,7.22533493]
[1772638272111,4.14662315,2136.3,2134.5,8.0]
[1772638272302,4.14662315,2136.3,2134.6,1.17117961]
[1772638272605,5.31690676,2136.3,2134.7,15.22533493]
[1772638272809,5.31690676,2136.3,2134.8,0.14948499]
[1772638272810,5.31689951,2136.3,2134.8,0.14948499]
[1772638273025,1.1,2136.4,2134.8,0.14948499]
[1772638273026,2.27020854,2136.4,2134.9,1.151]
[1772638273251,2.27020854,2136.4,2134.8,15.22533493]
[1772638273252,4.14662315,2136.0,2134.8,15.22533493]
[1772638273550,4.14662315,2136.0,2134.8,7.22533493]
[1772638274039,0.002,2135.5,2133.3,0.065536]
[1772638274200,0.002,2135.5,2133.2,1.40627789]
[1772638274201,4.14662315,2135.4,2133.4,15.22533493]
[1772638274400,0.002,2135.5,2133.5,1.17178345]
[1772638274621,1.1727078,2135.5,2133.6,0.065536]
[1772638274832,1.17269039,2135.5,2133.6,15.29087093]
[1772638275030,1.17270228,2135.5,2133.7,1.148]
[1772638275233,1.17270228,2135.5,2133.8,1.148]
[1772638275416,1.17270228,2135.5,2133.9,1.148]
[1772638275614,1.17270228,2135.5,2133.6,15.29087093]
[1772638275818,1.17270228,2135.5,2133.8,0.065536]
[1772638276020,4.68253169,2135.6,2133.8,0.065536]
[1772638276227,0.065536,2137.0,2133.7,1.148]
[1772638276228,5.31661543,2136.8,2134.4,0.14948499]
[1772638276426,5.31661543,2136.8,2134.7,0.14948499]
[1772638276623,5.31661543,2136.8,2135.0,0.14948499]
[1772638276825,1.16970008,2137.3,2135.0,0.14948499]
[1772638277045,1.16970008,2137.3,2135.2,0.21502099]
[1772638277251,4.14662315,2137.2,2135.3,7.22533493]
[1772638277547,4.14662315,2137.2,2134.5,1.17123448]
[1772638277548,4.14662315,2137.2,2135.0,1.145]
[1772638277850,4.14662315,2137.2,2135.0,0.21502099]
[1772638278051,4.14662315,2137.2,2134.9,1.145]
[1772638278052,4.14662315,2137.2,2135.2,0.14948499]
[1772638278222,4.14662315,2137.2,2135.3,1.144]
[1772638278427,1.16980955,2137.1,2135.4,1.144]
[1772638279037,1.16980955,2137.1,2135.5,15.22533493]
[1772638279342,4.58108725,2137.0,2135.5,15.22533493]
[1772638279645,4.58108725,2137.8,2135.6,7.37481992]
[1772638279832,0.41776753,2138.1,2135.8,4.97227383]
[1772638280036,4.58108725,2138.5,2136.4,0.14948499]
[1772638280243,4.58108725,2138.5,2136.5,16.36733493]
[1772638280418,4.58108725,2138.3,2136.6,2.3110833]
[1772638280611,4.58108725,2138.3,2136.5,19.90566816]
[1772638280612,4.58108725,2138.1,2136.7,15.22533493]
[1772638280839,4.58108725,2138.1,2136.8,1.141]
[1772638281040,2.25809839,2138.4,2136.6,15.22533493]
[1772638281240,4.58108725,2138.3,2136.6,15.22533493]
[1772638282760,4.58108725,2138.1,2136.7,1.17002854]
[1772638283117,4.58108725,2138.1,2136.8,15.22533493]
[1772638283314,4.58108725,2138.1,2136.4,4.68073326]
[1772638283315,4.60645467,2137.4,2135.2,4.68318269]
[1772638283614,4.60645467,2137.4,2135.3,11.30943766]
[1772638283615,1.086,2137.3,2135.3,11.30943766]
[1772638283818,5.69245467,2137.3,2135.3,11.30943766]
[1772638284018,1.086,2137.3,2135.4,1.138]
[1772638284247,1.086,2137.3,2135.3,14.82924691]
[1772638284548,1.16975481,2137.2,2135.4,1.17074084]
[1772638284919,5.77620948,2137.2,2135.5,10.17143766]
[1772638285137,4.60645467,2137.1,2135.5,10.17143766]
[1772638286657,4.60645467,2136.9,2135.5,10.17143766]
[1772638286865,4.60645467,2136.6,2134.5,0.32646309]
[1772638287068,1.16986429,2137.0,2134.6,1.17117961]
[1772638287069,4.60645467,2136.2,2134.6,1.17117961]
[1772638287224,4.60645467,2136.2,2134.6,11.32638473]
[1772638287841,6.77996467,2135.5,2133.2,2.30794824]
[1772638288021,1.082,2135.4,2133.3,10.17143766]
[1772638288232,5.68845467,2135.4,2133.4,1.135]
[1772638288447,5.68845467,2135.4,2133.5,8.0]
[1772638288649,4.60645467,2135.1,2133.5,8.0]
[1772638288953,4.60645467,2135.1,2133.6,2.17143766]
[1772638289350,4.60645467,2135.1,2133.7,8.0]
[1772638289932,4.60645467,2135.1,2133.8,2.17143766]
[1772638290431,1.17079567,2135.3,2133.9,8.0]
[1772638290623,5.76518269,2135.4,2133.9,8.0]
[1772638290624,2.25275601,2135.4,2134.0,3.34294656]
[1772638290837,1.079,2136.0,2134.1,8.0]
[1772638291170,1.079,2136.0,2134.3,4.65780925]
[1772638291337,4.6803656,2136.6,2134.5,4.65780925]
[1772638291338,1.17019284,2136.4,2134.5,4.65780925]
[1772638291539,1.17019284,2136.4,2134.6,3.30443766]
[1772638292048,1.17019284,2136.4,2134.6,11.30443766]
[1772638292745,1.17019284,2136.4,2134.7,1.17112474]
[1772638292960,5.77664751,2136.4,2134.6,11.34257755]
[1772638293328,0.002,2136.9,2134.9,4.65780925]
[1772638293585,2.246337,2138.0,2136.0,4.65780925]
[1772638293738,2.246337,2138.0,2136.1,4.13539865]
[1772638294034,2.246337,2138.0,2136.2,3.72880741]
[1772638294035,2.24634289,2138.0,2136.2,3.72880741]
[1772638294243,2.24634289,2138.0,2136.3,2.16943766]
[1772638294425,2.24634289,2138.0,2136.2,2.16943766]
[1772638294426,4.60645467,2137.8,2136.2,2.16943766]
[1772638294625,4.60645467,2137.6,2136.2,2.16943766]
[1772638295151,1.16948121,2137.7,2136.3,8.0]
[1772638295544,1.16926242,2138.1,2136.4,2.16943766]
[1772638295941,1.16926242,2138.1,2136.5,8.0]
[1772638296343,1.16926242,2138.1,2136.6,2.16943766]
[1772638296525,1.16926242,2138.1,2136.7,1.13]
[1772638296728,4.60645467,2138.1,2136.7,8.0]
[1772638297051,4.60645467,2138.1,2136.2,1.17027501]
[1772638297254,4.60645467,2137.8,2135.7,1.129]
[1772638297455,4.60645467,2137.4,2135.3,4.65780925]
[1772638297641,4.60645467,2137.4,2135.2,6.76072576]
[1772638297642,5.67945467,2137.3,2135.2,5.82860492]
[1772638298329,5.67945467,2137.3,2135.3,7.65478568]
[1772638298526,5.67945467,2137.3,2135.4,3.72000791]
[1772638298725,1.16975481,2137.2,2135.5,5.82849527]
[1772638299037,1.071,2137.5,2135.6,2.59184732]
[1772638299232,1.071,2137.5,2135.5,5.82849527]
[1772638299428,1.071,2137.5,2135.7,0.065536]
[1772638299735,1.16942651,2137.8,2135.7,0.065536]
[1772638299736,2.24042651,2137.8,2135.8,2.99716644]
[1772638299937,4.67644121,2138.4,2136.1,4.65780925]
[1772638300144,1.071,2138.3,2136.3,4.87283024]
[1772638300343,1.071,2138.3,2136.4,7.65497569]
[1772638300545,1.071,2138.3,2136.6,4.65780925]
[1772638300755,1.17199505,2138.6,2136.9,4.72334525]
[1772638301077,1.17199505,2138.6,2137.0,2.99716644]
[1772638301256,1.17199505,2138.6,2137.1,2.59215179]
[1772638301432,1.17199505,2138.6,2136.9,4.65780925]
[1772638301635,4.60645467,2138.5,2136.8,1.16997379]
[1772638301946,4.60645467,2138.5,2136.3,4.65780925]
[1772638301947,4.67375452,2139.7,2137.0,4.65780925]
[1772638302146,4.67375452,2139.7,2136.9,1.52968271]
[1772638302147,1.16838809,2139.7,2137.8,4.65780925]
[1772638302456,1.16827889,2139.9,2137.8,4.65780925]
[1772638302643,1.16827889,2139.9,2138.0,1.16931711]
[1772638302975,4.60645467,2140.8,2138.5,4.65780925]
[1772638303754,4.67050976,2141.1,2138.2,2.60659462]
[1772638303755,1.16756958,2141.2,2138.9,4.65780925]
[1772638303959,6.77810316,2141.1,2138.9,5.78180925]
[1772638304257,5.67245467,2141.1,2138.9,4.65780925]
[1772638304474,6.77810316,2140.9,2138.6,1.123]
[1772638304984,1.16778774,2140.8,2138.7,1.16893439]
[1772638305280,1.16778774,2140.8,2138.7,5.82674364]
[1772638306185,2.23276378,2140.9,2138.9,0.21502099]
[1772638306401,4.60645467,2142.7,2139.3,4.65780925]
[1772638306681,4.60645467,2141.9,2139.3,4.65780925]
[1772638306883,4.60645467,2141.4,2139.2,0.14948499]
[1772638307063,4.60645467,2141.4,2139.2,1.121]
[1772638307262,1.063,2141.3,2139.1,1.16871581]
[1772638307587,1.063,2141.3,2139.2,0.14948499]
[1772638307788,1.063,2141.3,2139.4,0.14948499]
[1772638307998,1.16740602,2141.5,2139.5,0.21502099]
[1772638308294,2.22918801,2141.9,2139.5,4.87283024]
[1772638308499,2.22918801,2141.9,2139.9,0.14948499]
[1772638308645,2.22918801,2141.9,2140.1,0.14948499]
[1772638308850,2.22918935,2141.9,2140.2,1.16811512]
[1772638309149,1.33387268,2142.1,2140.4,0.065536]
[1772638309348,1.33387268,2142.1,2140.3,1.26848499]
[1772638309651,1.061,2142.0,2140.3,1.119]
[1772638310095,1.061,2142.0,2140.2,1.16811512]
[1772638310265,1.061,2142.0,2140.2,2.28611512]
[1772638310452,1.33387268,2142.1,2140.3,0.065536]
[1772638310848,5.94735327,2142.0,2140.2,1.16811512]
[1772638311068,6.05454128,2141.9,2139.7,0.065536]
[1772638311483,1.06,2141.8,2139.7,0.065536]
[1772638311786,6.05454128,2141.9,2139.9,0.21502099]
[1772638312257,6.05454128,2141.9,2139.8,5.0269882]
[1772638312258,1.059,2141.8,2139.8,5.0269882]
[1772638312460,5.94635327,2141.7,2139.6,4.67373865]
[1772638312785,3.85078538,2141.9,2139.6,4.67373865]
[1772638312786,5.94535327,2141.6,2139.6,4.67373865]
[1772638312985,5.94535327,2141.6,2139.5,1.116]
[1772638312986,6.05492285,2141.2,2139.5,1.116]
[1772638313188,6.05492285,2141.2,2139.5,1.16845685]
[1772638313488,4.88735327,2140.9,2138.8,1.16882509]
[1772638313692,4.88735327,2140.7,2138.8,1.16882509]
[1772638314056,1.058,2140.8,2138.2,1.16915306]
[1772638314057,4.88735327,2140.5,2138.2,1.16915306]
[1772638314252,4.88735327,2140.1,2137.9,1.16937181]
[1772638314486,4.88735327,2139.9,2137.9,1.16937181]
[1772638314791,4.88735327,2139.6,2137.4,1.16964536]
[1772638314963,4.88735327,2139.4,2137.4,1.16964536]
[1772638315161,5.94435327,2139.3,2137.4,1.16964536]
[1772638315364,4.88735327,2139.3,2137.4,1.16964536]
[1772638315566,1.056,2139.2,2137.4,1.16964536]
[1772638315770,1.056,2139.1,2137.4,1.16964536]
[1772638316281,5.94335327,2139.1,2137.3,1.16967032]
[1772638316459,5.94335327,2139.1,2136.8,4.67979881]
[1772638316661,2.17164849,2139.3,2136.8,4.67979881]
[1772638316662,5.94235327,2139.0,2136.8,4.67979881]
[1772638316977,1.16882509,2138.9,2136.9,5.79145718]
[1772638317156,1.055,2138.8,2137.1,0.065536]
[1772638317954,1.055,2138.8,2137.0,1.16986429]
[1772638317955,5.94235327,2138.8,2137.0,1.16986429]
[1772638318155,5.94235327,2138.8,2136.7,0.31362475]
[1772638318383,4.88735327,2138.6,2136.7,1.48364741]
[1772638318684,4.88735327,2138.4,2136.6,4.68011419]
[1772638318984,1.16882509,2138.9,2136.6,4.68011419]
[1772638318985,4.88735327,2138.2,2136.7,1.17002168]
[1772638319160,1.16926242,2138.1,2136.3,0.001]
[1772638319361,1.16926242,2138.1,2136.3,1.111]
[1772638319761,2.22226242,2138.1,2136.3,1.111]
[1772638319987,2.22226242,2138.1,2136.3,0.001]
[1772638319988,4.88735327,2137.8,2136.3,0.001]
[1772638320162,4.88735327,2137.5,2136.3,0.001]
[1772638320362,2.17164849,2137.6,2136.0,0.001]
[1772638320363,5.93935327,2137.4,2136.0,0.001]
[1772638320579,4.88735327,2137.1,2136.0,0.001]
[1772638320780,1.052,2137.4,2135.8,0.001]
[1772638320781,4.88735327,2136.7,2135.8,0.001]
[1772638321062,1.17013807,2136.5,2135.8,0.001]
[1772638321272,6.05749134,2136.5,2135.8,0.001]
[1772638321669,1.051,2136.4,2135.8,0.001]
[1772638322188,6.05749134,2136.5,2134.9,1.17101187]
[1772638322189,1.17013807,2136.5,2134.9,1.17101187]
[1772638322574,1.051,2136.4,2134.9,1.17101187]
[1772638322777,1.051,2136.3,2134.9,1.17101187]
[1772638322976,1.051,2136.3,2134.8,1.17102927]
[1772638323288,1.051,2136.3,2133.6,4.68625521]
[1772638323289,4.88735327,2135.9,2133.6,4.68625521]
[1772638323488,3.34195089,2136.2,2133.4,4.68625521]
[1772638323489,4.88735327,2135.7,2133.4,4.68625521]
[1772638324572,1.051,2135.8,2133.4,4.68625521]
[1772638324573,4.88735327,2135.4,2133.4,4.68625521]
[1772638325171,4.88735327,2135.2,2133.4,4.68625521]
[1772638325391,4.68318269,2135.5,2133.8,0.065536]
[1772638325392,1.05,2135.5,2133.8,0.065536]
[1772638325689,1.17035719,2136.1,2134.0,5.24200919]
[1772638325890,1.17019284,2136.4,2134.2,5.24200919]
[1772638326091,2.22019284,2136.4,2134.2,5.24200919]
[1772638326388,4.88735327,2136.9,2134.3,5.17647319]
[1772638326564,4.88735327,2136.9,2134.9,0.21502099]
[1772638326565,1.1699601,2136.9,2134.9,0.21502099]
[1772638326764,2.2188779,2137.0,2135.2,0.14948499]
[1772638327161,1.049,2137.3,2135.4,5.24200919]
[1772638327407,1.049,2137.4,2135.4,5.24200919]
[1772638327891,1.049,2137.4,2135.6,0.21502099]
[1772638328078,1.049,2137.6,2135.6,0.21502099]
[1772638328274,1.16942651,2137.8,2135.8,0.14948499]
[1772638328478,2.21837621,2137.9,2135.8,5.24200919]
[1772638328677,2.21837621,2137.9,2135.8,5.0269882]
[1772638328889,2.21837621,2137.9,2135.9,0.21502099]
[1772638329091,1.16948121,2137.7,2136.0,1.17041198]
[1772638329290,6.05683448,2137.7,2136.0,1.17041198]
[1772638329490,6.05683448,2137.7,2135.7,1.17057639]
[1772638330170,2.17164849,2137.6,2135.5,4.68230556]
[1772638330370,4.88735327,2137.5,2135.0,5.0269882]
[1772638330605,4.88735327,2137.1,2134.7,2.27312474]
[1772638330809,1.047,2137.0,2134.8,5.0925242]
[1772638330975,4.88735327,2137.1,2134.8,5.0925242]
[1772638331177,1.047,2137.0,2134.8,5.0925242]
[1772638331400,1.16991904,2136.9,2135.0,0.065536]
[1772638331703,1.047,2136.8,2135.0,0.065536]
[1772638332271,4.67820215,2137.6,2135.0,5.0925242]
[1772638332609,1.046,2137.5,2135.3,0.14948499]
[1772638332801,4.67820215,2137.6,2135.3,0.21502099]
[1772638332980,1.046,2137.6,2135.5,5.24200919]
[1772638333300,4.88735327,2137.7,2135.5,5.24200919]
[1772638333301,5.93335327,2137.7,2135.9,1.17046678]
[1772638333501,7.10283784,2137.7,2135.9,1.17046678]
[1772638333900,6.05683784,2137.7,2135.9,1.17046678]
[1772638334282,1.045,2137.6,2135.9,1.17046678]
[1772638334598,5.93235327,2137.6,2135.9,1.17046678]
[1772638334769,5.93235327,2137.6,2135.3,1.098]
[1772638334770,4.88735327,2137.6,2135.3,1.098]
[1772638334985,4.88735327,2137.3,2135.4,4.68274408]
[1772638335301,4.88735327,2137.3,2134.9,5.0269882]
[1772638335302,6.05732706,2136.8,2135.0,4.68340202]
[1772638335481,1.044,2136.7,2135.0,4.68340202]
[1772638335680,6.05732706,2136.8,2134.9,4.68340202]
[1772638335886,0.003,2135.6,2134.9,4.68340202]
[1772638336086,6.05732706,2136.8,2134.9,4.68340202]
[1772638336282,1.043,2136.7,2134.9,4.68340202]
[1772638336489,5.93035327,2136.7,2134.9,4.68340202]
[1772638336711,1.043,2136.6,2134.9,4.68340202]
[1772638336931,5.93035327,2136.6,2134.9,4.68340202]
[1772638337090,5.93035327,2136.6,2134.6,1.17117961]
[1772638337434,4.88735327,2135.7,2133.2,1.17194824]
[1772638337724,1.042,2135.6,2133.6,0.001]
[1772638338123,5.92935327,2135.6,2133.6,0.001]
[1772638338323,4.88735327,2135.5,2133.6,0.001]
[1772638338891,5.19624532,2135.3,2133.6,0.001]
[1772638339502,1.1708505,2135.2,2133.6,0.001]
[1772638339711,6.36709582,2135.2,2133.6,0.001]
[1772638340537,5.19624532,2135.0,2133.6,0.001]
[1772638341442,6.23524532,2135.0,2133.6,0.001]
[1772638341742,7.40622932,2135.0,2133.6,0.001]
[1772638342203,6.36722932,2135.0,2133.6,0.001]
[1772638342423,5.19624532,2134.8,2133.6,0.001]
[1772638343029,5.19624532,2134.8,2133.4,0.001]
[1772638343332,5.04245384,2134.7,2133.4,0.001]
[1772638343531,1.037,2134.6,2133.4,0.001]
[1772638343743,1.17123448,2134.5,2133.4,0.001]
[1772638344028,1.17123448,2134.5,2133.1,0.001]
[1772638344029,5.04245384,2134.4,2133.1,0.001]
[1772638344543,2.17164849,2133.7,2131.6,9.87229361]
[1772638344695,1.036,2133.7,2131.7,1.1727729]
[1772638345311,1.036,2133.7,2131.8,0.065536]
[1772638345508,5.04245384,2133.6,2131.7,1.1727729]
[1772638345715,5.04245384,2133.6,2131.4,4.69109161]
[1772638345716,5.04245384,2133.4,2131.4,4.69109161]
[1772638346032,6.07745384,2133.3,2131.4,4.69109161]
[1772638346242,1.17178345,2133.5,2131.4,9.87208213]
[1772638346404,1.17178345,2133.5,2131.5,5.18099052]
[1772638346604,1.17178345,2133.5,2131.7,0.065536]
[1772638346804,4.6850241,2134.5,2132.0,0.065536]
[1772638347035,4.6850241,2134.5,2132.4,0.065536]
[1772638347239,7.24868832,2134.6,2132.1,5.28024068]
[1772638347240,2.20621881,2134.6,2132.8,0.065536]
[1772638347736,2.20621881,2134.6,2132.9,1.086]
[1772638347914,2.20621881,2134.6,2133.0,2.25705813]
[1772638348323,6.21335918,2135.1,2133.1,0.065536]
[1772638348501,1.034,2135.0,2133.1,0.065536]
[1772638348707,6.07645384,2135.0,2133.0,1.17205813]
[1772638349244,6.07545384,2135.0,2133.0,1.17205813]
[1772638349953,1.17101503,2134.9,2133.0,1.17205813]
[1772638350365,1.17101503,2134.9,2133.0,6.35304865]
[1772638350527,6.21346887,2134.9,2133.0,1.17205813]
[1772638352752,6.21346887,2134.9,2131.9,4.69021152]
[1772638352753,5.04245384,2134.0,2131.9,4.69021152]
[1772638352972,5.04245384,2133.8,2131.9,4.69021152]
[1772638353142,5.04245384,2133.6,2131.9,4.69021152]
[1772638354059,5.04245384,2133.4,2131.9,4.69021152]
[1772638354638,6.21434715,2133.3,2131.6,1.17282792]
[1772638354832,5.04245384,2133.2,2131.6,1.17282792]
[1772638355240,5.04245384,2133.2,2131.4,4.69153178]
[1772638355442,5.04245384,2132.8,2131.3,1.69416948]
[1772638355751,6.07045384,2132.7,2131.3,0.52121264]
[1772638355958,6.07045384,2132.7,2131.3,1.69420036]
[1772638356153,5.04245384,2132.7,2131.3,1.69420036]
[1772638356335,6.06945384,2132.7,2131.3,0.52121264]
[1772638356537,1.17238791,2132.4,2131.3,1.69420324]
[1772638356739,6.21484175,2132.4,2131.3,0.52121264]
[1772638357422,6.21484175,2132.4,2131.3,1.69418899]
[1772638357934,6.21484175,2132.4,2131.3,0.52121264]
[1772638358137,6.21484175,2132.4,2131.3,1e-08]
[1772638358342,1.026,2132.3,2131.3,1e-08]
[1772638358538,1.17249788,2132.2,2131.3,1e-08]
[1772638358942,1.17249788,2132.2,2130.4,4.69389454]
[1772638358943,6.21495172,2132.2,2130.4,4.69389454]
[1772638359163,6.21495172,2132.2,2130.3,6.5892328]
[1772638359337,6.21495172,2132.2,2130.4,6.31952652]
[1772638359526,6.21495172,2132.2,2130.4,5.24652652]
[1772638359837,5.04245384,2132.3,2130.3,1.40824228]
[1772638360040,5.04245384,2132.3,2130.2,4.69417452]
[1772638360041,6.06745384,2132.3,2130.2,1.1735509]
[1772638360236,6.06745384,2132.3,2130.2,6.35454142]
[1772638360436,6.06745384,2132.3,2130.3,1.072]
[1772638360758,6.21495172,2132.2,2130.4,1.072]
[1772638361058,6.21495172,2132.2,2130.5,1.072]
[1772638361245,6.21495172,2132.2,2130.6,1.071]
[1772638361757,6.21495172,2132.2,2130.2,6.35454142]
[1772638362134,6.21495172,2132.2,2130.2,1.1735509]
[1772638362334,6.21495172,2132.2,2130.3,1.07]
[1772638362533,6.21495172,2132.2,2129.9,4.69439489]
[1772638362534,6.21495172,2132.2,2129.6,0.065536]
[1772638362775,6.21495172,2132.2,2129.5,1.47400251]
[1772638362776,6.21495172,2132.2,2129.5,0.065536]
[1772638363139,6.21495172,2132.2,2129.7,0.065536]
[1772638363577,6.21495172,2132.2,2130.3,0.065536]
[1772638363867,6.21495172,2132.2,2130.5,0.065536]
[1772638364035,6.21499663,2132.2,2130.4,0.065536]
[1772638364232,6.21499663,2132.2,2130.5,1.068]
[1772638364427,6.21499663,2132.2,2130.3,5.18099052]
[1772638364633,6.21499663,2132.2,2130.5,1.17343346]
[1772638364831,6.21499663,2132.2,2130.6,1.068]
[1772638365137,6.21499663,2132.2,2130.7,1.068]
[1772638365333,5.04245384,2132.0,2130.5,1.17343346]
[1772638365742,5.04245384,2132.0,2130.5,2.24043346]
[1772638365937,5.04245384,2132.0,2129.9,1.17376402]
[1772638366239,2.19354279,2132.2,2129.9,1.17376402]
[1772638366240,5.04245384,2131.8,2130.0,1.066]
[1772638366435,5.04245384,2131.8,2130.1,0.065536]
[1772638366741,1.1727729,2131.7,2130.2,1.17359872]
[1772638367060,1.1727729,2131.7,2130.3,1.066]
[1772638367257,1.1727729,2131.7,2130.2,1.17359872]
[1772638367640,6.21522674,2131.7,2130.2,1.17359872]
[1772638368535,4.67080622,2131.6,2130.2,1.17359872]
[1772638368732,4.67080622,2131.6,2130.3,1.064]
[1772638369055,1.17288294,2131.5,2130.3,1.064]
[1772638369240,4.67080622,2131.4,2129.7,0.065536]
[1772638369851,2.17393356,2131.3,2130.5,0.001]
[1772638370037,1.17283132,2131.6,2130.5,0.001]
[1772638370236,4.67080622,2131.7,2130.5,0.001]
[1772638370467,5.84359739,2131.7,2130.5,0.001]
[1772638370640,5.84359541,2131.7,2130.5,1.063]
[1772638370841,5.84359541,2131.7,2130.6,1.17337839]
[1772638371047,5.84358904,2131.7,2130.6,1.17337839]
[1772638371469,1.17278282,2131.7,2130.6,1.17337839]
[1772638371765,1.17278514,2131.7,2130.6,1.17337839]
[1772638371971,4.67080622,2132.3,2130.6,1.17337839]
[1772638372169,4.67080622,2132.3,2130.5,4.69451356]
[1772638372170,4.67080622,2131.8,2130.5,1.17439697]
[1772638372370,4.67080622,2131.8,2130.5,0.001]
[1772638372547,4.67080622,2131.4,2130.5,0.001]
[1772638372868,4.67080622,2131.4,2128.9,4.69682025]
[1772638372869,4.67080622,2130.8,2128.9,4.69682025]
[1772638373170,4.67080622,2130.8,2129.0,1.059]
[1772638373369,4.67080622,2130.8,2129.0,3.68337758]
[1772638373574,4.67080622,2130.8,2128.9,4.69682025]
[1772638373774,1.17321319,2130.9,2128.7,1.17438911]
[1772638373775,4.67080622,2130.5,2128.7,1.17438911]
[1772638373938,4.67080622,2130.1,2128.3,4.69837938]
[1772638374138,4.67080622,2130.1,2128.3,1.17464643]
[1772638374975,4.67080622,2129.9,2128.2,1.059]
[1772638375161,4.67080622,2129.9,2128.2,0.001]
[1772638375361,4.67080622,2129.6,2128.2,0.001]
[1772638375683,5.68580622,2129.6,2128.2,0.001]
[1772638376690,4.67080622,2129.6,2128.2,0.001]
[1772638376984,5.84479072,2129.5,2128.3,1.17464643]
[1772638378180,4.69465407,2130.1,2128.3,1.17464643]
[1772638378181,1.17376402,2129.9,2128.3,1.17464643]
[1772638378485,4.67080622,2129.8,2128.3,1.17464643]
[1772638378771,4.67080622,2129.8,2128.2,0.001]
[1772638378973,4.67080622,2129.6,2128.2,0.001]
[1772638380682,4.67080622,2129.5,2128.2,0.001]
[1772638380992,4.67080622,2129.3,2128.2,0.001]
[1772638381283,1.17403963,2129.4,2128.0,0.001]
[1772638381284,4.67080622,2129.2,2128.0,0.001]
[1772638381669,1.17403963,2129.4,2128.1,1.051]
[1772638382063,5.84484585,2129.4,2128.0,0.001]
[1772638382261,4.67080622,2129.3,2128.0,0.001]
[1772638382962,4.67080622,2130.5,2128.1,4.5625589]
[1772638383165,5.84429476,2130.4,2128.3,4.5625589]
[1772638383505,4.67080622,2130.3,2128.3,4.5625589]
[1772638383736,4.67080622,2130.3,2128.4,1.05]
[1772638383853,4.67080622,2130.4,2128.6,4.5625589]
[1772638384197,4.67080622,2130.4,2128.2,2.52555282]
[1772638384354,4.67080622,2129.9,2128.0,0.001]
[1772638384689,4.67080622,2129.7,2128.0,0.001]
[1772638385002,4.67080622,2129.5,2128.0,0.001]